bitfinex/quotes_ETHUSD_20251024
["timestamp","ask_amount","ask_price","bid_price","bid_amount"]
[1761315992250,0.128,3909.8,3909.2,1.84913726]
[1761315992463,0.0002,3910.2,3908.5,2.55850141]
[1761315992464,0.2355,3909.9,3908.5,14.52511894]
[1761315992685,0.128,3909.3,3909.2,2.55806814]
[1761315993996,0.4651,3910.2,3910.0,2.557526]
[1761315994199,0.4651,3910.2,3909.8,2.55763259]
[1761315994497,0.128,3909.9,3909.8,2.55763259]
[1761315995191,0.0002,3910.2,3910.1,2.55747934]
[1761315995575,0.4651,3910.2,3908.3,14.52511894]
[1761315995914,0.4651,3910.2,3907.5,0.1095]
[1761315995915,0.50688,3910.1,3907.5,0.1095]
[1761315996093,2.0201,3910.0,3908.7,2.55838596]
[1761315996390,2.0201,3910.0,3908.0,2.55878863]
[1761315996560,0.4649,3909.9,3909.0,2.55819531]
[1761315996764,0.4649,3909.9,3909.6,2.55780357]
[1761315996962,0.4649,3909.9,3908.6,14.52511894]
[1761315997200,0.4649,3909.9,3907.4,0.1095]
[1761315997366,0.50688,3909.8,3907.0,14.63461894]
[1761315997562,0.50688,3909.8,3906.7,0.1095]
[1761315997563,0.50688,3908.6,3906.2,0.1095]
[1761315997796,0.2156,3908.4,3906.7,14.52511894]
[1761315998001,3.8106,3908.4,3906.7,14.52511894]
[1761315998201,0.441,3908.3,3906.2,1.57316189]
[1761315998516,0.441,3908.3,3907.3,2.55926176]
[1761315998692,0.441,3908.3,3906.5,2.55983617]
[1761315998693,0.441,3908.3,3907.2,2.55936726]
[1761315999006,0.441,3908.3,3907.3,2.55925816]
[1761315999363,0.441,3908.3,3907.6,2.55909296]
[1761315999559,0.2156,3908.4,3908.3,2.55865721]
[1761315999767,0.2156,3908.8,3907.9,14.52511894]
[1761316000063,0.2156,3908.8,3908.7,2.55839537]
[1761316000296,0.441,3909.0,3908.9,2.55826447]
[1761316000492,0.441,3909.0,3908.6,2.55842187]
[1761316000809,0.441,3909.0,3907.4,0.36542679]
[1761316001011,0.441,3909.0,3907.8,2.55898459]
[1761316001198,0.441,3909.0,3908.5,2.55847832]
[1761316001600,0.441,3909.0,3907.4,0.25592679]
[1761316001909,0.441,3909.0,3907.0,14.52511894]
[1761316002110,0.441,3909.0,3907.9,2.55890973]
[1761316002479,0.441,3909.0,3907.0,17.08460669]
[1761316002681,0.50688,3908.4,3906.4,2.55990169]
[1761316002886,3.588,3908.3,3907.2,2.55936428]
[1761316003082,4.029,3908.3,3907.2,2.55936428]
[1761316003407,4.029,3908.3,3906.9,2.55957304]
[1761316003408,0.2156,3907.3,3906.9,2.55957304]
[1761316003808,0.441,3907.2,3906.2,0.1095]
[1761316004120,0.441,3907.2,3905.9,0.002]
[1761316004121,4.024,3907.2,3905.9,0.002]
[1761316004416,4.024,3907.2,3906.2,2.56001794]
[1761316004617,0.441,3907.1,3905.9,0.002]
[1761316004921,0.2156,3906.0,3905.9,0.002]
[1761316005095,0.2156,3906.0,3903.5,0.02761803]
[1761316005096,3.7976,3906.0,3903.5,0.02761803]
[1761316005296,0.441,3905.9,3903.5,10.222]
[1761316005497,0.50688,3905.8,3903.5,0.002]
[1761316005686,1.9962,3905.9,3903.5,0.002]
[1761316005687,0.2156,3903.6,3903.5,0.002]
[1761316006120,0.2156,3904.1,3903.9,2.56154099]
[1761316006305,0.2156,3904.1,3904.0,2.5614754]
[1761316006508,0.441,3904.4,3904.3,2.56127859]
[1761316006822,3.8016,3904.5,3903.5,0.02761803]
[1761316006823,0.2156,3904.5,3904.4,2.56121299]
[1761316006986,4.027,3904.9,3904.8,2.56095062]
[1761316007187,0.441,3904.8,3904.7,2.5610105]
[1761316007396,3.586,3904.9,3904.8,2.56095062]
[1761316007599,0.2156,3905.2,3905.1,2.56075388]
[1761316008197,3.586,3905.9,3905.8,2.56029494]
[1761316008198,3.5852,3905.9,3905.8,2.56029494]
[1761316008622,3.5852,3905.9,3904.4,0.1135]
[1761316008623,4.2418,3905.9,3904.5,2.56111018]
[1761316008828,3.7978,3905.9,3905.8,2.56029494]
[1761316009022,3.5822,3905.9,3905.8,2.56029494]
[1761316009889,3.5822,3905.9,3904.8,3.585]
[1761316009890,3.7978,3905.9,3904.1,0.1135]
[1761316010098,0.441,3905.8,3904.3,2.56125652]
[1761316010322,0.441,3905.8,3904.4,1.81132565]
[1761316010526,0.441,3905.8,3903.8,0.1135]
[1761316010527,0.441,3905.8,3903.8,2.56158529]
[1761316010827,0.50688,3905.7,3902.9,0.1165]
[1761316010989,1.9962,3905.8,3903.0,2.56211588]
[1761316011195,0.441,3905.7,3903.4,2.56180869]
[1761316011549,0.441,3905.7,3904.9,2.56083717]
[1761316011725,0.441,3905.7,3903.4,0.1135]
[1761316011726,0.441,3905.7,3905.2,2.56063795]
[1761316011913,0.441,3905.7,3904.8,2.56088954]
[1761316012112,0.441,3905.7,3904.4,2.56121084]
[1761316012427,0.50688,3905.6,3903.5,0.26974347]
[1761316012612,0.50688,3905.6,3903.5,0.002]
[1761316012802,1.5552,3905.3,3903.5,0.002]
[1761316013009,0.2156,3903.6,3903.5,0.002]
[1761316013388,0.6566,3903.6,3903.5,0.002]
[1761316014028,3.581,3903.7,3903.5,2.5638035]
[1761316014229,3.581,3903.7,3903.6,2.56173788]
[1761316014403,3.581,3903.7,3903.5,0.002]
[1761316014606,0.441,3903.6,3903.5,0.002]
[1761316015422,0.441,3903.6,3903.5,2.5638035]
[1761316015740,0.441,3903.6,3903.5,0.002]
[1761316015741,0.569,3903.6,3903.5,0.002]
[1761316015946,0.569,3903.6,3903.5,2.5638035]
[1761316016145,0.569,3903.6,3903.5,0.002]
[1761316016373,0.569,3903.6,3899.5,0.68411538]
[1761316016374,2.56173788,3903.6,3900.0,0.1]
[1761316016682,0.50688,3901.0,3898.7,0.51248372]
[1761316016953,0.50688,3901.0,3898.6,0.125]
[1761316016954,0.657,3901.3,3899.2,0.13359139]
[1761316017110,0.657,3901.5,3899.3,0.02564562]
[1761316017318,1.191,3901.9,3899.9,2.56413314]
[1761316017514,1.955,3902.3,3900.2,2.56397107]
[1761316017755,1.955,3902.3,3900.3,1.5552]
[1761316018017,1.955,3902.3,3900.7,1.5552]
[1761316018263,1.955,3902.3,3900.4,0.3364]
[1761316018480,1.955,3902.3,3897.6,1.42324245]
[1761316018481,0.93658,3902.2,3899.9,0.1072]
[1761316018634,2.49178,3902.2,3899.9,0.1072]
[1761316018961,0.50688,3902.0,3900.7,2.56358367]
[1761316019113,0.50688,3902.0,3900.8,2.56356347]
[1761316019315,0.50688,3901.8,3899.4,2.5644971]
[1761316019538,0.50688,3901.8,3899.3,0.1072]
[1761316019746,0.50688,3901.6,3899.3,0.3364]
[1761316019941,0.50688,3901.6,3899.4,0.18916]
[1761316020111,0.50688,3901.6,3900.8,2.56351653]
[1761316020317,1.955,3902.3,3899.3,0.1072]
[1761316020318,0.50688,3901.4,3899.3,0.1072]
[1761316020552,0.2229,3899.4,3898.7,2.56494424]
[1761316020752,3.1019,3899.4,3898.9,2.56476435]
[1761316020923,2.56332621,3901.2,3898.2,2.56528594]
[1761316020924,0.4297,3900.4,3898.3,0.0256522]
[1761316021124,0.8207,3900.4,3898.2,1.5552]
[1761316021338,0.8207,3900.4,3898.5,2.56508204]
[1761316021568,0.93658,3900.3,3898.1,2.7945473]
[1761316021858,0.93658,3900.3,3896.3,0.13157936]
[1761316021859,0.4297,3900.3,3897.1,5.10496085]
[1761316022018,0.4297,3901.2,3899.4,1.5552]
[1761316022213,0.2229,3901.4,3899.5,0.41197266]
[1761316022448,0.4297,3901.3,3900.4,2.56383416]
[1761316022616,0.4297,3901.3,3899.6,2.56436557]
[1761316022855,1.219,3901.5,3899.6,0.2292]
[1761316023064,1.219,3901.5,3901.4,2.56318244]
[1761316023411,0.6526,3901.4,3900.6,0.002]
[1761316023588,0.50688,3901.3,3900.6,0.002]
[1761316023889,2.49178,3901.3,3900.6,0.002]
[1761316024052,0.50688,3901.2,3900.6,0.002]
[1761316024393,0.4297,3901.2,3900.6,0.002]
[1761316026055,0.4297,3901.2,3898.3,2.56521496]
[1761316026253,0.4297,3901.2,3897.6,0.2312]
[1761316026254,0.50688,3901.1,3897.6,0.2312]
[1761316026586,0.128,3898.8,3898.7,2.56495754]
[1761316026759,0.128,3898.8,3898.0,2.69336476]
[1761316026958,0.128,3898.8,3897.0,0.3532]
[1761316026959,0.4297,3898.7,3897.0,0.3532]
[1761316027198,0.4297,3899.6,3897.7,3.43409965]
[1761316027380,0.2229,3901.4,3898.2,1.7864]
[1761316027381,3.343,3899.7,3898.2,1.7864]
[1761316027566,0.408,3899.7,3898.2,1.5552]
[1761316027765,0.408,3899.7,3897.7,0.86853649]
[1761316027766,0.2244,3898.7,3897.7,0.86853649]
[1761316027987,0.654,3898.7,3897.7,0.86853649]
[1761316028386,0.50688,3898.5,3897.7,0.86853649]
[1761316028582,0.50688,3898.4,3897.7,0.86853649]
[1761316028892,0.4296,3898.5,3897.7,0.86853649]
[1761316029090,0.4296,3898.5,3897.9,2.56546729]
[1761316029291,1.463,3898.6,3897.7,0.86853649]
[1761316029798,0.4296,3898.5,3897.7,0.86853649]
[1761316029980,2.56341842,3901.1,3897.7,0.86853649]
[1761316029981,0.654,3899.2,3898.5,2.56508913]
[1761316030182,0.654,3899.2,3897.7,0.99303649]
[1761316030183,2.011,3899.1,3897.7,0.99303649]
[1761316030388,2.011,3899.1,3898.1,2.56529155]
[1761316030591,2.011,3899.1,3897.7,0.86853649]
[1761316030592,0.50688,3898.9,3897.7,0.86853649]
[1761316030796,0.4296,3898.8,3897.7,0.86853649]
[1761316031123,0.654,3899.7,3897.8,0.4807]
[1761316031412,0.601,3899.8,3897.9,0.16057848]
[1761316031594,0.601,3899.7,3898.7,2.56491689]
[1761316031790,0.601,3899.7,3898.1,2.56535235]
[1761316031995,0.601,3899.7,3899.0,2.56471942]
[1761316032193,0.6002,3899.7,3898.7,2.56494171]
[1761316032379,0.6002,3899.7,3897.9,0.13492365]
[1761316032900,0.4296,3899.6,3897.9,0.13492365]
[1761316033204,0.50688,3899.5,3896.9,0.3562]
[1761316033395,0.4296,3899.6,3897.8,0.02565549]
[1761316033567,1.0298,3899.7,3897.8,2.56554979]
[1761316033766,1.0298,3899.7,3899.0,2.56470148]
[1761316034002,1.0298,3899.7,3897.9,0.35585863]
[1761316034300,1.0298,3899.7,3898.0,2.92159038]
[1761316034501,0.6002,3899.7,3899.3,2.56450351]
[1761316034668,0.6002,3899.7,3899.0,2.56471971]
[1761316034669,0.6002,3899.7,3899.4,2.56449394]
[1761316034868,0.6002,3899.7,3899.6,2.56436557]
[1761316035467,0.953,3900.6,3900.1,2.56402554]
[1761316035667,0.953,3900.6,3899.0,2.56476019]
[1761316035877,0.66288313,3902.8,3900.5,0.1072]
[1761316036190,0.4296,3902.7,3900.5,1.54752359]
[1761316036508,0.87848313,3903.2,3900.5,0.1072]
[1761316036666,1.1546,3903.1,3900.7,2.56364242]
[1761316036871,1.1546,3903.1,3900.6,2.91990814]
[1761316036872,0.128,3901.6,3901.5,2.56311674]
[1761316037569,0.4296,3903.0,3901.2,0.128]
[1761316037796,0.4296,3903.0,3900.8,2.5635767]
[1761316038033,0.2156,3903.2,3900.9,2.56351098]
[1761316038231,3.649,3903.0,3901.1,2.56337955]
[1761316038540,3.649,3903.0,3902.5,2.56245391]
[1761316038697,3.696,3902.9,3902.6,2.56237398]
[1761316038892,3.696,3902.9,3901.3,0.3562]
[1761316039126,3.696,3902.9,3902.1,2.56265965]
[1761316039331,3.696,3902.9,3902.3,2.56258198]
[1761316039502,3.696,3902.9,3901.8,0.1245]
[1761316039995,3.692,3902.8,3902.3,2.56253011]
[1761316040194,3.692,3902.8,3902.4,2.56250919]
[1761316040396,3.692,3902.8,3902.1,2.56266004]
[1761316040732,3.692,3902.8,3901.8,0.1245]
[1761316040907,3.689,3902.8,3901.8,0.1245]
[1761316041110,3.689,3902.8,3902.4,2.56247295]
[1761316041311,0.66288313,3904.4,3902.6,12.74083592]
[1761316041536,0.66288313,3904.4,3902.5,2.56245996]
[1761316041537,0.4296,3904.5,3902.5,0.3562]
[1761316041836,0.66288313,3904.7,3901.9,0.3562]
[1761316041996,3.45077125,3904.9,3902.0,0.02562788]
[1761316041997,0.50688,3904.5,3902.0,0.02562788]
[1761316042203,1.89188313,3904.4,3902.8,2.56226282]
[1761316042539,1.89188313,3904.4,3903.4,2.56180991]
[1761316042540,3.699,3904.3,3903.4,2.56180991]
[1761316042738,4.1286,3904.3,3903.2,2.5619511]
[1761316042910,3.699,3904.3,3902.1,0.3562]
[1761316043114,0.001,3903.4,3902.2,0.02562656]
[1761316043314,0.001,3903.4,3903.3,2.56193477]
[1761316043521,0.001,3903.4,3903.3,2.91813477]
[1761316043724,0.001,3903.4,3903.3,3.47860051]
[1761316044625,2.56064121,3905.3,3903.3,3.47860051]
[1761316044626,0.001,3905.9,3903.4,1.5552]
[1761316044824,0.001,3905.9,3905.0,2.56077595]
[1761316045031,0.001,3905.9,3905.1,2.56074316]
[1761316045354,0.001,3905.9,3903.7,2.56167225]
[1761316045355,2.9908319,3905.9,3903.7,2.56167225]
[1761316045559,2.9908319,3905.9,3903.6,0.3562]
[1761316045560,2.56042336,3905.7,3903.6,0.3562]
[1761316045714,0.93648,3905.8,3903.3,0.56046574]
[1761316045913,0.93648,3905.8,3903.4,0.3562]
[1761316045914,0.4296,3905.8,3903.4,0.3562]
[1761316046110,0.4296,3905.7,3903.6,2.56173788]
[1761316046337,0.4296,3905.7,3903.8,2.56160663]
[1761316046534,0.665,3905.6,3903.6,2.56173788]
[1761316046734,0.665,3905.6,3904.5,2.56112785]
[1761316047013,0.001,3905.9,3903.3,0.42416431]
[1761316047014,0.001,3905.9,3904.6,0.02561081]
[1761316047344,0.4306,3905.9,3904.5,2.56110294]
[1761316047649,0.4306,3905.9,3905.2,2.56065917]
[1761316047844,0.128,3905.0,3904.4,0.128]
[1761316048013,0.4306,3905.9,3904.7,2.56095977]
[1761316048359,0.128,3904.8,3904.7,2.56101166]
[1761316048675,0.128,3904.8,3903.3,0.78036431]
[1761316048952,0.128,3903.6,3903.2,0.1245]
[1761316049114,0.128,3903.6,3903.5,2.5618035]
[1761316049444,0.2244,3904.5,3903.9,2.56151225]
[1761316049666,0.2244,3906.0,3903.2,0.1245]
[1761316049955,0.001,3905.9,3905.7,2.56035525]
[1761316050157,0.001,3905.9,3905.8,2.56029494]
[1761316050931,0.001,3905.9,3904.4,0.3562]
[1761316051142,0.988,3905.9,3905.8,2.56029494]
[1761316051547,0.001,3905.9,3905.8,2.56029494]
[1761316051749,0.001,3905.9,3905.7,2.56035873]
[1761316052065,0.001,3905.9,3904.3,0.3562]
[1761316052422,0.001,3905.9,3904.4,2.56121299]
[1761316052635,0.001,3905.9,3904.5,0.31991405]
[1761316052834,0.001,3905.9,3904.6,2.5610818]
[1761316053046,0.001,3905.9,3905.8,2.56029494]
[1761316053444,3.708,3905.9,3905.4,2.56053666]
[1761316053645,4.1376,3905.9,3905.5,2.56044858]
[1761316053847,3.709,3905.8,3905.5,2.56044858]
[1761316054191,4.1386,3905.8,3905.5,2.56047745]
[1761316054464,3.709,3905.8,3904.7,2.56101621]
[1761316054759,3.709,3905.8,3905.7,2.56036049]
[1761316054923,0.001,3905.9,3905.8,2.56029494]
[1761316055959,3.584,3905.9,3905.5,2.5604432]
[1761316056162,3.5832,3905.9,3905.0,2.56081946]
[1761316056463,0.0002,3905.9,3905.2,7.68206493]
[1761316056669,0.001,3906.3,3905.3,2.56058353]
[1761316056867,0.001,3906.3,3905.3,1.5552]
[1761316057067,0.608,3906.3,3905.1,0.28525411]
[1761316057268,0.4306,3906.3,3904.4,0.356]
[1761316057466,1.183,3906.2,3905.6,2.56036851]
[1761316057675,3.708,3906.1,3904.5,2.56114739]
[1761316057831,3.708,3906.1,3905.2,2.5606393]
[1761316058038,0.432,3906.0,3905.2,2.5606393]
[1761316058263,0.432,3906.0,3904.9,2.56087923]
[1761316058264,0.2179,3905.3,3902.9,0.356]
[1761316058532,0.50688,3905.2,3902.9,0.356]
[1761316058760,0.93888,3905.2,3903.9,2.56153358]
[1761316058969,0.93888,3905.2,3903.8,2.56160305]
[1761316059191,0.93888,3905.2,3902.9,1.9112]
[1761316059192,0.432,3905.1,3902.9,1.5552]
[1761316059336,3.705,3905.0,3902.3,0.356]
[1761316059529,0.432,3905.1,3902.4,0.02562525]
[1761316059530,5.2602,3904.9,3902.4,0.02562525]
[1761316059832,0.432,3905.0,3902.4,0.02562525]
[1761316060034,0.128,3903.8,3903.3,0.128]
[1761316060331,0.128,3903.8,3903.7,2.56167225]
[1761316060757,3.707,3904.4,3903.7,0.52477342]
[1761316061042,3.707,3904.5,3904.1,2.56140083]
[1761316061243,0.432,3905.0,3904.2,2.56134152]
[1761316061539,3.705,3904.9,3903.7,2.56167225]
[1761316061740,3.704,3904.8,3903.4,0.1243]
[1761316061941,3.704,3904.8,3903.6,0.002]
[1761316062265,0.50688,3904.6,3903.6,0.002]
[1761316062471,0.50688,3904.4,3903.6,0.002]
[1761316062669,1.9872,3904.7,3903.3,0.002]
[1761316062670,2.77957244,3903.7,3903.3,0.002]
[1761316062868,3.705,3903.6,3902.1,2.56272173]
[1761316063054,0.50688,3903.2,3900.7,0.358]
[1761316063256,0.50688,3903.2,3900.9,2.56351098]
[1761316063457,0.432,3903.1,3900.7,0.358]
[1761316063763,0.90988,3903.0,3900.8,0.20204]
[1761316063964,2.56179425,3903.6,3900.8,0.20204]
[1761316063965,0.6499,3902.9,3900.8,0.20204]
[1761316064166,0.50688,3903.3,3900.9,0.0256351]
[1761316064399,0.66288313,3904.6,3900.9,0.0256351]
[1761316064400,0.606,3903.5,3901.4,2.56318244]
[1761316064586,0.566,3903.4,3902.1,2.56272263]
[1761316064772,0.566,3903.5,3901.5,0.41183824]
[1761316064972,0.529,3903.4,3901.8,2.56291967]
[1761316065184,0.50688,3904.4,3901.9,2.56285399]
[1761316065410,0.432,3904.2,3902.0,0.02562788]
[1761316065701,0.432,3904.2,3903.8,2.56154714]
[1761316065914,0.607,3904.1,3903.7,2.56163955]
[1761316066114,0.2179,3904.6,3904.0,2.5614754]
[1761316066267,0.2179,3904.6,3902.0,2.56276575]
[1761316066268,3.701,3904.0,3902.0,2.56276575]
[1761316066604,2.06208,3903.9,3902.4,2.56251906]
[1761316066791,2.06208,3903.9,3902.1,0.30512658]
[1761316066792,2.49408,3903.9,3902.1,0.30512658]
[1761316066994,0.50688,3903.7,3902.6,2.56239042]
[1761316067199,3.701,3903.6,3901.6,0.1285]
[1761316067370,3.701,3903.6,3901.8,2.56291967]
[1761316067371,0.50688,3903.5,3901.8,2.56291967]
[1761316067575,0.93888,3903.5,3901.8,2.56291967]
[1761316067770,0.93888,3903.5,3902.6,2.56234479]
[1761316067971,1.34209861,3905.1,3902.0,1.5552]
[1761316068302,0.2179,3904.4,3901.9,0.36]
[1761316068479,0.6499,3904.4,3902.1,1.5552]
[1761316068680,3.697,3904.9,3902.6,2.5623943]
[1761316068880,3.714,3904.8,3902.8,2.56226299]
[1761316069070,0.432,3905.1,3904.3,2.56124468]
[1761316069270,0.432,3905.1,3903.0,2.56213169]
[1761316069271,3.713,3905.0,3903.6,2.56171855]
[1761316069569,3.713,3905.0,3902.9,2.1714263]
[1761316069570,3.713,3905.0,3903.0,2.56213169]
[1761316069800,0.432,3905.0,3903.3,2.56193477]
[1761316069997,0.604,3904.9,3904.5,2.56108261]
[1761316070167,0.432,3905.0,3904.5,2.56108508]
[1761316070373,3.709,3904.9,3904.3,2.56122175]
[1761316070681,0.128,3904.4,3903.9,2.56154102]
[1761316070884,3.709,3904.9,3903.6,0.128]
[1761316070885,3.709,3904.9,3904.3,2.56121938]
[1761316071093,3.709,3904.9,3902.6,2.56233733]
[1761316071094,0.128,3904.4,3903.5,0.128]
[1761316071406,3.709,3904.9,3904.4,2.5612017]
[1761316071582,3.709,3904.9,3903.4,2.71547575]
[1761316071772,0.432,3905.6,3904.6,2.56102064]
[1761316072112,0.128,3904.4,3904.3,2.56127859]
[1761316072410,0.128,3905.0,3904.4,0.128]
[1761316072699,0.128,3905.4,3904.4,0.36]
[1761316072899,0.128,3905.4,3904.8,0.128]
[1761316073403,0.128,3905.5,3904.8,0.128]
[1761316073620,0.128,3905.9,3905.3,0.128]
[1761316074625,0.128,3905.9,3905.8,2.56029494]
[1761316075590,0.725,3906.2,3905.3,0.128]
[1761316075591,0.725,3906.2,3906.1,2.5600983]
[1761316075916,0.001,3906.3,3906.2,2.56003276]
[1761316076123,0.001,3906.3,3906.2,2.66723276]
[1761316076315,0.001,3906.3,3906.2,3.17924587]
[1761316076472,0.001,3906.3,3906.2,3.53924587]
[1761316076673,0.001,3906.3,3906.2,3.66724587]
[1761316076901,0.001,3906.3,3906.2,3.69284619]
[1761316077699,0.001,3906.3,3906.2,3.66724587]
[1761316078091,0.001,3906.3,3906.2,5.24804619]
[1761316078311,0.001,3906.3,3906.2,5.22244587]
[1761316078516,0.001,3906.3,3906.2,2.79523276]
[1761316078824,0.001,3906.3,3906.2,2.56003276]
[1761316079361,0.129,3906.3,3906.2,2.56003276]
[1761316079685,0.001,3906.3,3906.2,2.56003276]
[1761316080320,0.0002,3906.3,3906.2,2.56003276]
[1761316080633,0.0002,3906.3,3904.9,0.128]
[1761316080634,0.5789,3906.3,3904.9,0.128]
[1761316080778,0.50688,3906.2,3904.4,2.68921001]
[1761316081131,0.4507,3906.2,3904.7,2.56101621]
[1761316081296,0.128,3905.2,3905.1,2.56075388]
[1761316081922,2.055,3905.9,3905.6,2.56036375]
[1761316082213,0.128,3905.7,3905.6,2.56042605]
[1761316083222,0.0002,3906.3,3906.2,2.56003276]
[1761316083450,0.0002,3906.3,3905.6,0.51209401]
[1761316083451,0.1282,3906.3,3905.6,0.51209401]
[1761316083630,0.1282,3906.3,3904.7,0.1285]
[1761316083631,0.128,3905.7,3904.7,0.1285]
[1761316083835,0.128,3905.7,3905.6,2.56037758]
[1761316084394,0.0002,3906.3,3906.2,2.56003276]
[1761316084876,0.1282,3906.3,3906.2,2.56003276]
[1761316085090,1e-08,3906.3,3906.2,2.56003276]
[1761316085574,1e-08,3906.3,3905.2,2.56067345]
[1761316085575,4.04670001,3906.3,3905.2,2.56067345]
[1761316085724,4.04670001,3906.3,3903.6,3.667]
[1761316085725,4.04670001,3906.3,3905.3,2.56056333]
[1761316086056,0.4507,3906.2,3904.7,0.1285]
[1761316086230,0.4507,3906.2,3902.9,0.002]
[1761316086231,0.50688,3906.1,3904.8,2.56093315]
[1761316086571,0.50688,3905.9,3903.4,2.92184933]
[1761316086735,0.50688,3905.9,3903.4,0.36]
[1761316086939,0.50688,3905.7,3904.8,2.56089655]
[1761316087144,0.4507,3905.6,3904.0,0.1285]
[1761316087467,0.4507,3905.6,3904.9,2.56086383]
[1761316087768,0.4507,3905.6,3905.1,2.56075315]
[1761316087929,3.664,3905.5,3905.1,2.56075315]
[1761316088324,4.1214,3905.5,3905.0,2.56081946]
[1761316088529,0.4574,3905.4,3904.6,2.56108135]
[1761316088759,0.4574,3905.4,3904.1,2.56140979]
[1761316088971,0.4574,3905.4,3903.4,0.36]
[1761316089266,0.50688,3905.3,3904.4,2.56114881]
[1761316089560,3.656,3905.2,3904.9,2.56083771]
[1761316089860,3.656,3905.2,3904.6,2.5610764]
[1761316090025,3.656,3905.2,3903.5,1.9152]
[1761316090026,0.4574,3905.1,3903.6,2.56173788]
[1761316090229,0.4574,3905.7,3903.8,2.56160663]
[1761316090545,0.4574,3905.7,3903.6,0.36]
[1761316090546,0.4574,3905.7,3904.8,2.5609329]
[1761316090732,3.653,3905.6,3904.9,2.56088356]
[1761316090927,0.4574,3905.7,3904.9,2.56088356]
[1761316091173,3.652,3905.5,3904.9,2.56088356]
[1761316091367,0.50688001,3906.3,3904.9,2.56088356]
[1761316091368,3.652,3905.9,3904.9,0.51218967]
[1761316091526,3.652,3905.9,3905.5,2.56044844]
[1761316091729,0.4574,3906.2,3904.9,0.51218967]
[1761316091730,0.4574,3906.2,3905.9,2.56022597]
[1761316091924,3.651,3906.1,3905.8,2.56028584]
[1761316092179,3.651,3906.0,3905.1,2.56075388]
[1761316092480,3.651,3906.0,3905.5,2.56043867]
[1761316092767,1e-08,3906.3,3905.9,2.56022939]
[1761316092975,3.651,3906.2,3905.8,2.56028932]
[1761316093186,4.1084,3906.2,3904.2,1.9152]
[1761316093385,4.1084,3906.2,3905.0,2.56076246]
[1761316093532,3.649,3906.1,3905.2,2.56068831]
[1761316093726,3.649,3906.1,3906.0,2.56016385]
[1761316093933,1e-08,3906.3,3906.2,2.56003276]
[1761316094552,1e-08,3906.3,3906.2,3.08490242]
[1761316095239,1e-08,3906.3,3906.2,3.21290242]
[1761316095954,1e-08,3906.3,3906.2,3.08490242]
[1761316096267,1e-08,3906.3,3906.2,2.56003276]
[1761316096466,1e-08,3906.3,3906.2,4.60323276]
[1761316096830,1e-08,3906.3,3906.2,4.47523276]
[1761316097030,1e-08,3906.3,3906.2,4.60323276]
[1761316097270,1e-08,3906.3,3906.2,4.62883308]
[1761316097455,1e-08,3906.3,3906.2,6.10396277]
[1761316097640,1e-08,3906.3,3906.2,5.57148245]
[1761316097845,1e-08,3906.3,3906.2,6.07836245]
[1761316098586,1e-08,3906.3,3906.2,6.76247783]
[1761316098770,1e-08,3906.3,3906.2,5.57148245]
[1761316099780,1e-08,3906.3,3906.2,5.21148245]
[1761316099983,1e-08,3906.3,3906.2,2.56003276]
[1761316100297,0.00100001,3906.3,3906.2,2.56003276]
[1761316100872,0.00100001,3906.3,3906.2,2.94563308]
[1761316101074,0.00100001,3906.3,3906.2,2.56003276]
[1761316102296,0.00100001,3906.3,3906.2,2.58563308]
[1761316102483,0.00100001,3906.3,3906.2,3.24298245]
[1761316102687,0.00100001,3906.3,3906.2,3.26858277]
[1761316103072,0.00100001,3906.3,3906.2,3.24298245]
[1761316103288,0.00100001,3906.3,3906.2,3.60298245]
[1761316103794,0.00100001,3906.3,3906.2,3.24298245]
[1761316103997,0.00100001,3906.3,3906.2,2.56003276]
[1761316104305,0.00020001,3906.3,3906.2,2.56003276]
[1761316105296,0.00020001,3906.3,3906.2,4.11523276]
[1761316105918,0.00020001,3906.3,3906.2,4.47523276]
[1761316106488,0.00020001,3906.3,3906.2,4.50083308]
[1761316106713,0.00020001,3906.3,3906.2,5.18133245]
[1761316107218,0.00020001,3906.3,3906.2,3.26613245]
[1761316107416,0.00020001,3906.3,3906.2,3.39413245]
[1761316107595,0.00020001,3906.3,3906.2,3.41973277]
[1761316107793,0.00020001,3906.3,3906.2,3.39413245]
[1761316108103,0.00020001,3906.3,3906.2,3.41973277]
[1761316108506,0.00020001,3906.3,3906.2,3.77973277]
[1761316110890,0.00020001,3906.3,3906.2,8.92633245]
[1761316111090,0.00020001,3906.3,3906.2,3.39413245]
[1761316111398,0.00020001,3906.3,3906.2,6.30203276]
[1761316111608,0.00020001,3906.3,3906.2,2.68803276]
[1761316111807,0.00020001,3906.3,3906.2,2.56003276]
[1761316112789,0.00020001,3906.3,3906.2,2.58563308]
[1761316113189,0.00020001,3906.3,3906.2,8.11083308]
[1761316113420,0.00020001,3906.3,3906.2,9.30785245]
[1761316114800,0.00020001,3906.3,3906.2,23.85867105]
[1761316115730,0.00020001,3906.3,3906.2,20.24867105]
[1761316115933,0.00020001,3906.3,3906.2,4.11523276]
[1761316116147,0.00020001,3906.3,3906.2,2.56003276]
[1761316117134,0.45760001,3906.3,3906.2,2.56003276]
[1761316117293,0.45760001,3906.3,3904.8,0.1072]
[1761316117497,0.45760001,3906.3,3904.4,0.91075873]
[1761316117498,0.2272,3906.2,3905.6,2.56041089]
[1761316117697,0.4292,3906.1,3905.5,2.56047959]
[1761316117917,0.4292,3906.1,3904.4,6.16121299]
[1761316117918,0.4292,3906.1,3904.5,0.2752733]
[1761316118329,0.4292,3906.1,3904.8,2.56095062]
[1761316118529,0.4292,3906.1,3904.9,0.02560885]
[1761316118842,0.4292,3906.0,3904.9,1.5552]
[1761316119000,0.4292,3906.0,3905.9,2.56022939]